[Event "EYTCC U12 Open 2019"]
[Site "Pardubice"]
[Date "2019.07.13"]
[Round "3.1"]
[White "Fiszer, Bartosz"]
[Black "Maurizzi, Marc Andria"]
[Result "1-0"]
[ECO "C78"]
[WhiteElo "2124"]
[BlackElo "2412"]
[Annotator "NA"]
[PlyCount "95"]
[EventDate "2019.07.11"]
[EventType "swiss"]
[EventCountry "CZE"]
[SourceTitle "playchess.com"]
[Source "ChessBase"]
[SourceQuality "1"]
[WhiteTeam "Poland"]
[BlackTeam "France"]
[WhiteTeamCountry "POL"]
[BlackTeamCountry "FRA"]
[TimeControl "40/5400+30:1800+30"]

1. e4 {[%emt 0:00:00]} e5 {[%emt 0:00:00]} 2. Nf3 {[%emt 0:00:00]} Nc6 {[%emt 0:00:00]} 3. Bb5 {[%emt 0:00:00]} a6 {[%emt 0:00:00]} 4. Ba4 {[%emt 0:00:00]} Nf6 {[%emt 0:00:01]} 5. O-O {[%emt 0:00:04]} Bc5 {[%emt 0:00:04]} 6. c3 {[%emt 0:01:31]} b5 {[%emt 0:00:07]} 7. Bc2 {[%emt 0:01:51]} d5 {[%emt 0:00:37]} 8. d4 {[%emt 0:02:13]} dxe4 {[%emt 0:00:11]} 9. dxc5 {[%emt 0:07:12]} Qxd1 {[%emt 0:00:52]} 10. Bxd1 {[%emt 0:00:20]} exf3 {[%emt 0:00:03]} 11. Bxf3 {[%emt 0:00:33]} e4 {[%emt 0:00:04]} 12. Bd1 {[%emt 0:05:43]} Be6 {[%emt 0:09:10]} 13. Bc2 {[%emt 0:02:04]} O-O-O {[%emt 0:16:50]} 14. Bg5 {[%emt 0:13:22]} Ne5 {[%emt 0:22:45]} 15. Nd2 {[%emt 0:09:04]} Nd3 {[%emt 0:07:11]} 16. Bxf6 {[%emt 0:01:11]} gxf6 {[%emt 0:00:01]} 17. Nxe4 {[%emt 0:03:02]} Nxb2 {[%emt 0:00:08]} 18. Nxf6 {[%emt 0:00:13]} Nd3 {[%emt 0:03:27]} 19. Rfd1 {[%emt 0:00:57]} Bf5 {[%emt 0:08:53]} 20. g4 {[%emt 0:02:25]} Bg6 {[%emt 0:00:07]} 21. Bxd3 {[%emt 0:00:04]} Bxd3 {[%emt 0:02:07]} 22. a4 {[%emt 0:04:30]} Kb7 {[%emt 0:10:37]} 23. axb5 {[%emt 0:01:14]} axb5 {[%emt 0:00:57]} 24. Re1 {[%emt 0:00:34]} Bc4 {[%emt 0:00:28]} 25. Re7 {[%emt 0:01:38]} Rd3 {[%emt 0:03:01]} 26. Rc1 {[%emt 0:02:33]} Kc6 {[%emt 0:01:24]} 27. h4 {[%emt 0:06:11]} Be6 {[%emt 0:01:41]} 28. g5 {[%emt 0:00:40]} Rc8 {[%emt 0:02:43]} 29. h5 {[%emt 0:01:18]} Kxc5 {[%emt 0:00:29]} 30. g6 {[%emt 0:00:08]} hxg6 {[%emt 0:00:35]} 31. hxg6 {[%emt 0:00:02]} Kd6 {[%emt 0:00:11]} 32. Re8 {[%emt 0:00:28]} fxg6 {[%emt 0:00:21]} 33. Ne4+ {[%emt 0:00:05]} Kd5 {[%emt 0:00:50]} 34. Rxe6 Kxe6 {[%emt 0:00:29]} 35. Nc5+ {[%emt 0:00:18]} Kd5 {[%emt 0:00:01]} 36. Nxd3 {[%emt 0:00:08]} c5 {[%emt 0:00:02]} 37. Kf1 {[%emt 0:00:27]} Kc4 {[%emt 0:00:13]} 38. Ne5+ {[%emt 0:00:56]} Kb3 {[%emt 0:00:05]} 39. Rb1+ {[%emt 0:01:30]} Kxc3 {[%emt 0:00:06]} 40. Rxb5 {[%emt 0:00:02]} c4 {[%emt 0:00:12]} 41. Nxg6 {[%emt 0:30:29]} Kc2 {[%emt 0:30:09]} 42. Ke2 {[%emt 0:01:04]} c3 {[%emt 0:00:12]} 43. f4 {[%emt 0:01:24]} Kc1 {[%emt 0:00:31]} 44. f5 {[%emt 0:00:14]} c2 {[%emt 0:00:22]} 45. Ne5 {[%emt 0:00:06]} Re8 {[%emt 0:00:39]} 46. f6 {[%emt 0:00:09]} Re7 {[%emt 0:00:32]} 47. f7 {[%emt 0:00:09]} Re8 {[%emt 0:00:12]} 48. f8=Q {[%emt 0:00:04]} 1-0

[Event "EYTCC U12 Open 2019"]
[Site "Pardubice"]
[Date "2019.07.13"]
[Round "3.2"]
[White "Makkar, Rajat"]
[Black "Seemann, Jakub"]
[Result "0-1"]
[ECO "E62"]
[WhiteElo "2064"]
[BlackElo "2017"]
[Annotator "NA"]
[PlyCount "72"]
[EventDate "2019.07.11"]
[EventType "swiss"]
[EventCountry "CZE"]
[SourceTitle "playchess.com"]
[Source "ChessBase"]
[SourceQuality "1"]
[WhiteTeam "France"]
[BlackTeam "Poland"]
[WhiteTeamCountry "FRA"]
[BlackTeamCountry "POL"]
[TimeControl "40/5400+30:1800+30"]

1. d4 {[%emt 0:00:00]} Nf6 {[%emt 0:00:00]} 2. c4 {[%emt 0:00:02]} g6 {[%emt 0:00:00]} 3. g3 {[%emt 0:00:05]} Bg7 {[%emt 0:00:00]} 4. Bg2 {[%emt 0:00:08]} O-O {[%emt 0:00:00]} 5. Nc3 {[%emt 0:00:08]} d6 {[%emt 0:00:10]} 6. Nf3 {[%emt 0:00:11]} Nc6 {[%emt 0:00:10]} 7. O-O {[%emt 0:00:11]} Bg4 {[%emt 0:00:06]} 8. d5 {[%emt 0:01:31]} Na5 {[%emt 0:00:07]} 9. Nd2 {[%emt 0:01:25]} c5 {[%emt 0:00:14]} 10. Qc2 {[%emt 0:02:21]} a6 {[%emt 0:00:18]} 11. Rb1 {[%emt 0:04:07]} Bd7 {[%emt 0:03:08]} 12. e4 {[%emt 0:00:55]} e5 {[%emt 0:02:50]} 13. b3 {[%emt 0:13:13]} b5 {[%emt 0:00:36]} 14. Bb2 {[%emt 0:00:31]} Rb8 {[%emt 0:00:21]} 15. Ba1 {[%emt 0:03:03]} Qc7 {[%emt 0:01:59]} 16. Qd3 {[%emt 0:02:28]} bxc4 {[%emt 0:01:52]} 17. bxc4 {[%emt 0:00:21]} Rb4 {[%emt 0:01:39]} 18. a3 {[%emt 0:04:23]} Rxb1 {[%emt 0:00:16]} 19. Rxb1 {[%emt 0:00:03]} Rb8 {[%emt 0:00:44]} 20. Rxb8+ {[%emt 0:00:51]} Qxb8 {[%emt 0:00:03]} 21. f4 {[%emt 0:04:12]} exf4 {[%emt 0:03:57]} 22. gxf4 {[%emt 0:01:37]} Nh5 {[%emt 0:00:48]} 23. Qf1 {[%emt 0:02:32]} Bd4+ {[%emt 0:04:12]} 24. Kh1 Be3 {[%emt 0:01:12]} 25. Qd3 {[%emt 0:10:11]} Bxf4 {[%emt 0:05:37]} 26. Ncb1 {[%emt 0:02:35]} Qd8 {[%emt 0:01:32]} 27. Nf3 {[%emt 0:04:25]} g5 {[%emt 0:02:02]} 28. Qc3 {[%emt 0:04:54]} f6 {[%emt 0:00:04]} 29. Qd3 {[%emt 0:01:17]} g4 {[%emt 0:03:09]} 30. Nh4 {[%emt 0:00:55]} f5 {[%emt 0:01:42]} 31. Nxf5 {[%emt 0:04:49]} Bxf5 {[%emt 0:00:04]} 32. exf5 {[%emt 0:00:55]} Qh4 {[%emt 0:00:06]} 33. h3 {[%emt 0:00:50]} Qe1+ {[%emt 0:00:04]} 34. Bf1 {[%emt 0:00:09]} Qf2 {[%emt 0:00:10]} 35. Bg2 {[%emt 0:01:13]} Ng3+ {[%emt 0:00:05]} 36. Qxg3 {[%emt 0:00:40]} Bxg3 0-1

[Event "EYTCC U12 Open 2019"]
[Site "Pardubice"]
[Date "2019.07.13"]
[Round "3.3"]
[White "Meers, Hubert"]
[Black "Mekhane, Adam"]
[Result "1-0"]
[ECO "B56"]
[WhiteElo "2141"]
[BlackElo "2040"]
[Annotator "NA"]
[PlyCount "65"]
[EventDate "2019.07.11"]
[EventType "swiss"]
[EventCountry "CZE"]
[SourceTitle "playchess.com"]
[Source "ChessBase"]
[SourceQuality "1"]
[WhiteTeam "Poland"]
[BlackTeam "France"]
[WhiteTeamCountry "POL"]
[BlackTeamCountry "FRA"]
[TimeControl "40/5400+30:1800+30"]

1. e4 {[%emt 0:00:00]} c5 {[%emt 0:00:00]} 2. Nf3 {[%emt 0:00:00]} Nc6 {[%emt 0:00:00]} 3. d4 {[%emt 0:00:00]} cxd4 {[%emt 0:00:00]} 4. Nxd4 {[%emt 0:00:00]} Nf6 {[%emt 0:00:00]} 5. Nc3 {[%emt 0:00:00]} d6 {[%emt 0:00:00]} 6. f3 {[%emt 0:00:36]} e5 {[%emt 0:01:54]} 7. Nb3 {[%emt 0:00:07]} Be6 {[%emt 0:04:53]} 8. Be3 {[%emt 0:00:34]} Be7 {[%emt 0:04:42]} 9. Qe2 {[%emt 0:00:14]} O-O {[%emt 0:08:26]} 10. O-O-O {[%emt 0:01:10]} Qc8 {[%emt 0:01:25]} 11. g4 {[%emt 0:05:57]} a5 {[%emt 0:06:23]} 12. Na4 {[%emt 0:05:06]} Nd7 {[%emt 0:01:43]} 13. Qf2 {[%emt 0:03:34]} b5 {[%emt 0:04:57]} 14. Bxb5 {[%emt 0:03:18]} Rb8 {[%emt 0:05:14]} 15. Nc3 {[%emt 0:04:25]} Rxb5 {[%emt 0:07:25]} 16. Nxb5 {[%emt 0:03:07]} a4 {[%emt 0:00:57]} 17. Na1 {[%emt 0:02:59]} Nb4 {[%emt 0:04:14]} 18. a3 {[%emt 0:15:25]} Na2+ {[%emt 0:07:33]} 19. Kb1 {[%emt 0:00:14]} Qb7 {[%emt 0:01:00]} 20. Qe2 {[%emt 0:00:26]} Rb8 {[%emt 0:06:15]} 21. c4 {[%emt 0:00:29]} Rc8 {[%emt 0:00:28]} 22. Rd5 {[%emt 0:00:34]} Nb6 {[%emt 0:07:59]} 23. Bxb6 {[%emt 0:00:10]} Qxb6 {[%emt 0:00:41]} 24. Kxa2 {[%emt 0:00:08]} Bxd5 {[%emt 0:00:17]} 25. exd5 {[%emt 0:00:16]} e4 {[%emt 0:00:15]} 26. Nc2 {[%emt 0:01:41]} exf3 {[%emt 0:01:19]} 27. Qxe7 {[%emt 0:00:33]} Qf2 {[%emt 0:00:32]} 28. Qe4 {[%emt 0:00:34]} Qg2 {[%emt 0:00:22]} 29. Re1 {[%emt 0:00:16]} h6 {[%emt 0:00:11]} 30. Re3 {[%emt 0:00:50]} Rxc4 {[%emt 0:00:33]} 31. Qxc4 {[%emt 0:00:53]} f2 {[%emt 0:00:12]} 32. Qc8+ {[%emt 0:00:20]} Kh7 {[%emt 0:00:01]} 33. Qf5+ {[%emt 0:00:07]} 1-0

[Event "EYTCC U12 Open 2019"]
[Site "Pardubice"]
[Date "2019.07.13"]
[Round "3.4"]
[White "Bat, Bilguun"]
[Black "Klimkowski, Jan"]
[Result "0-1"]
[ECO "A48"]
[WhiteElo "2093"]
[BlackElo "1985"]
[Annotator "NA"]
[PlyCount "80"]
[EventDate "2019.07.11"]
[EventType "swiss"]
[EventCountry "CZE"]
[SourceTitle "playchess.com"]
[Source "ChessBase"]
[SourceQuality "1"]
[WhiteTeam "France"]
[BlackTeam "Poland"]
[WhiteTeamCountry "FRA"]
[BlackTeamCountry "POL"]
[TimeControl "40/5400+30:1800+30"]

1. d4 {[%emt 0:00:00]} Nf6 {[%emt 0:00:00]} 2. Nf3 {[%emt 0:00:00]} g6 {[%emt 0:00:00]} 3. c4 {[%emt 0:00:00]} Bg7 {[%emt 0:00:00]} 4. e3 {[%emt 0:00:00]} O-O {[%emt 0:00:02]} 5. Be2 {[%emt 0:00:00]} d5 {[%emt 0:01:34]} 6. cxd5 {[%emt 0:00:00]} Nxd5 {[%emt 0:01:57]} 7. e4 {[%emt 0:00:05]} Nb6 {[%emt 0:00:26]} 8. O-O {[%emt 0:00:06]} Bg4 {[%emt 0:02:48]} 9. Nbd2 {[%emt 0:00:18]} e5 {[%emt 0:03:38]} 10. Nxe5 {[%emt 0:00:42]} Bxe2 {[%emt 0:01:55]} 11. Qxe2 {[%emt 0:00:07]} Qxd4 {[%emt 0:00:57]} 12. Ndf3 {[%emt 0:00:07]} Qd6 {[%emt 0:04:53]} 13. Bf4 {[%emt 0:02:06]} Qe7 {[%emt 0:01:39]} 14. Rac1 {[%emt 0:11:56]} Na6 {[%emt 0:01:59]} 15. Nd3 {[%emt 0:05:10]} Rae8 {[%emt 0:04:37]} 16. Rfe1 {[%emt 0:07:00]} Nd5 {[%emt 0:14:06]} 17. Bg3 {[%emt 0:11:25]} f5 {[%emt 0:03:08]} 18. Be5 {[%emt 0:06:33]} Bxe5 {[%emt 0:04:24]} 19. Ndxe5 {[%emt 0:01:43]} fxe4 {[%emt 0:00:57]} 20. Qxe4 {[%emt 0:01:04]} c6 {[%emt 0:00:51]} 21. Qg4 {[%emt 0:04:52]} Qg7 {[%emt 0:08:12]} 22. h4 {[%emt 0:06:50]} Kh8 {[%emt 0:03:30]} 23. Qg3 {[%emt 0:02:07]} Nf4 {[%emt 0:02:36]} 24. Rcd1 {[%emt 0:03:56]} Nc5 {[%emt 0:02:26]} 25. b4 {[%emt 0:01:48]} Nce6 {[%emt 0:02:09]} 26. Rd7 {[%emt 0:02:19]} Re7 {[%emt 0:03:15]} 27. Rxe7 {[%emt 0:00:13]} Qxe7 {[%emt 0:00:08]} 28. Ng5 {[%emt 0:03:09]} Qxb4 {[%emt 0:03:05]} 29. Re3 {[%emt 0:07:34]} Nxg5 {[%emt 0:06:00]} 30. hxg5 {[%emt 0:01:00]} Qb1+ {[%emt 0:01:42]} 31. Kh2 {[%emt 0:00:06]} Qf5 {[%emt 0:00:20]} 32. Nf3 {[%emt 0:02:17]} Nd5 {[%emt 0:02:16]} 33. Rb3 {[%emt 0:01:50]} b6 {[%emt 0:03:43]} 34. Nd4 {[%emt 0:01:34]} Qe4 {[%emt 0:03:07]} 35. Nxc6 {[%emt 0:03:34]} Rf4 {[%emt 0:00:30]} 36. f3 {[%emt 0:01:06]} Qc4 {[%emt 0:00:53]} 37. Qe1 {[%emt 0:07:58]} Qxc6 {[%emt 0:03:18]} 38. Rd3 {[%emt 0:00:16]} Qd6 {[%emt 0:01:29]} 39. g3 {[%emt 0:00:24]} Rf8 {[%emt 0:00:47]} 40. Qe4 {[%emt 0:00:20]} Rd8 {[%emt 0:00:21]} 0-1

[Event "EYTCC U12 Open 2019"]
[Site "Pardubice"]
[Date "2019.07.13"]
[Round "3.5"]
[White "Tancsa, Tamas"]
[Black "Strybuk, Artsiom I"]
[Result "1/2-1/2"]
[ECO "C65"]
[WhiteElo "2126"]
[BlackElo "2193"]
[Annotator "NA"]
[PlyCount "106"]
[EventDate "2019.07.11"]
[EventType "swiss"]
[EventCountry "CZE"]
[SourceTitle "playchess.com"]
[Source "ChessBase"]
[SourceQuality "1"]
[WhiteTeam "Hungary"]
[BlackTeam "Belarus"]
[WhiteTeamCountry "HUN"]
[BlackTeamCountry "BLR"]
[TimeControl "40/5400+30:1800+30"]

1. e4 {[%emt 0:00:00]} e5 {[%emt 0:00:00]} 2. Nf3 {[%emt 0:00:00]} Nc6 {[%emt 0:00:00]} 3. Bb5 {[%emt 0:00:00]} Nf6 {[%emt 0:00:03]} 4. d3 {[%emt 0:00:00]} Bc5 {[%emt 0:00:20]} 5. O-O d6 {[%emt 0:00:15]} 6. c3 {[%emt 0:00:16]} O-O {[%emt 0:00:56]} 7. Nbd2 {[%emt 0:04:08]} h6 {[%emt 0:02:42]} 8. h3 {[%emt 0:00:48]} Bb6 {[%emt 0:00:10]} 9. Nc4 {[%emt 0:03:35]} Ne7 {[%emt 0:00:14]} 10. Nxb6 {[%emt 0:00:38]} axb6 {[%emt 0:00:11]} 11. Re1 {[%emt 0:01:25]} Be6 {[%emt 0:03:01]} 12. d4 {[%emt 0:05:36]} Ng6 13. a3 {[%emt 0:06:53]} c6 {[%emt 0:08:13]} 14. Bd3 {[%emt 0:03:28]} b5 {[%emt 0:02:59]} 15. Be3 {[%emt 0:04:36]} Qc7 {[%emt 0:04:16]} 16. Qc2 {[%emt 0:14:34]} Nh5 {[%emt 0:08:24]} 17. c4 {[%emt 0:04:04]} bxc4 {[%emt 0:10:16]} 18. Bxc4 {[%emt 0:00:21]} Qc8 {[%emt 0:04:47]} 19. Bxe6 {[%emt 0:04:14]} Qxe6 {[%emt 0:00:38]} 20. Qd2 {[%emt 0:06:36]} Nf6 {[%emt 0:10:23]} 21. Qd3 {[%emt 0:02:25]} d5 {[%emt 0:08:00]} 22. exd5 {[%emt 0:03:04]} Qxd5 {[%emt 0:00:29]} 23. Qc3 {[%emt 0:00:19]} e4 {[%emt 0:04:13]} 24. Ne5 {[%emt 0:00:35]} Ne7 {[%emt 0:05:04]} 25. Qb4 {[%emt 0:04:22]} Qe6 {[%emt 0:07:35]} 26. Qxb7 {[%emt 0:12:58]} Rfb8 {[%emt 0:00:24]} 27. Qc7 {[%emt 0:00:01]} Rxb2 {[%emt 0:00:32]} 28. Rab1 {[%emt 0:03:14]} Ned5 {[%emt 0:06:35]} 29. Qxc6 {[%emt 0:02:45]} Qxc6 {[%emt 0:00:05]} 30. Nxc6 {[%emt 0:00:15]} Rxb1 {[%emt 0:00:04]} 31. Rxb1 {[%emt 0:01:14]} Rxa3 {[%emt 0:04:28]} 32. Bd2 {[%emt 0:03:17]} Rd3 {[%emt 0:01:58]} 33. Ba5 {[%emt 0:02:56]} Nf4 {[%emt 0:03:05]} 34. Rb8+ {[%emt 0:02:13]} Kh7 {[%emt 0:00:05]} 35. Rf8 {[%emt 0:00:29]} Ne2+ {[%emt 0:03:28]} 36. Kf1 {[%emt 0:01:18]} Nf4 {[%emt 0:02:37]} 37. Kg1 {[%emt 0:00:03]} Ne2+ {[%emt 0:00:12]} 38. Kf1 {[%emt 0:00:04]} Nxd4 {[%emt 0:00:20]} 39. Nxd4 {[%emt 0:00:03]} Rxd4 {[%emt 0:00:24]} 40. Rxf7 {[%emt 0:00:05]} Kg6 {[%emt 0:00:55]} 41. Rf8 {[%emt 0:32:11]} Rd1+ {[%emt 0:31:36]} 42. Ke2 {[%emt 0:00:48]} Rg1 {[%emt 0:00:13]} 43. g3 {[%emt 0:02:37]} Rh1 {[%emt 0:00:24]} 44. h4 {[%emt 0:00:14]} Rc1 {[%emt 0:00:00]} 45. Bb6 {[%emt 0:00:00]} Rc2+ {[%emt 0:00:00]} 46. Ke1 {[%emt 0:00:00]} Nd7 {[%emt 0:00:00]} 47. Rd8 {[%emt 0:00:00]} Ne5 {[%emt 0:00:00]} 48. Be3 {[%emt 0:00:00]} Ra2 {[%emt 0:00:00]} 49. Re8 {[%emt 0:00:00]} Nd3+ {[%emt 0:00:00]} 50. Kf1 {[%emt 0:00:00]} Kf5 {[%emt 0:00:00]} 51. Rf8+ {[%emt 0:00:00]} Kg4 {[%emt 0:00:00]} 52. Rg8 {[%emt 0:00:00]} Kf3 {[%emt 0:00:00]} 53. Rf8+ {[%emt 0:00:00]} Kg4 1/2-1/2

[Event "EYTCC U12 Open 2019"]
[Site "Pardubice"]
[Date "2019.07.13"]
[Round "3.6"]
[White "Navumenka, Mikhei"]
[Black "Konyves, Almos"]
[Result "1-0"]
[ECO "E04"]
[WhiteElo "2196"]
[BlackElo "2104"]
[Annotator "NA"]
[PlyCount "99"]
[EventDate "2019.07.11"]
[EventType "swiss"]
[EventCountry "CZE"]
[SourceTitle "playchess.com"]
[Source "ChessBase"]
[SourceQuality "1"]
[WhiteTeam "Belarus"]
[BlackTeam "Hungary"]
[WhiteTeamCountry "BLR"]
[BlackTeamCountry "HUN"]
[TimeControl "40/5400+30:1800+30"]

1. d4 {[%emt 0:00:00]} d5 {[%emt 0:00:00]} 2. c4 {[%emt 0:00:00]} e6 {[%emt 0:00:00]} 3. Nf3 {[%emt 0:00:00]} Nf6 {[%emt 0:00:00]} 4. g3 {[%emt 0:00:00]} dxc4 {[%emt 0:00:13]} 5. Bg2 {[%emt 0:00:06]} Nc6 {[%emt 0:02:00]} 6. O-O {[%emt 0:02:00]} Rb8 {[%emt 0:05:26]} 7. Nc3 {[%emt 0:09:48]} Be7 {[%emt 0:08:56]} 8. Qa4 {[%emt 0:14:07]} O-O {[%emt 0:13:33]} 9. Qxc4 {[%emt 0:00:32]} a6 {[%emt 0:10:56]} 10. a4 {[%emt 0:03:02]} Na5 {[%emt 0:02:30]} 11. Qd3 {[%emt 0:01:26]} Nb3 {[%emt 0:01:22]} 12. Rb1 {[%emt 0:00:14]} Nxc1 {[%emt 0:01:04]} 13. Rbxc1 {[%emt 0:00:38]} c5 {[%emt 0:04:13]} 14. Rfd1 {[%emt 0:03:37]} Qb6 {[%emt 0:03:58]} 15. dxc5 {[%emt 0:05:05]} Bxc5 {[%emt 0:01:32]} 16. e3 {[%emt 0:00:10]} Bd7 {[%emt 0:02:39]} 17. Ne5 {[%emt 0:05:50]} Rfd8 {[%emt 0:01:51]} 18. Qe2 {[%emt 0:00:42]} Be8 {[%emt 0:01:29]} 19. g4 {[%emt 0:08:20]} h6 {[%emt 0:02:05]} 20. h4 {[%emt 0:01:33]} Be7 {[%emt 0:08:07]} 21. g5 {[%emt 0:04:35]} hxg5 {[%emt 0:00:05]} 22. hxg5 {[%emt 0:00:15]} Nd7 {[%emt 0:00:12]} 23. Nc4 {[%emt 0:01:46]} Qb4 {[%emt 0:01:23]} 24. g6 {[%emt 0:06:32]} f5 {[%emt 0:01:25]} 25. e4 {[%emt 0:12:41]} Bxg6 {[%emt 0:03:02]} 26. Rxd7 {[%emt 0:00:32]} Rxd7 {[%emt 0:00:07]} 27. Ne5 {[%emt 0:00:03]} Be8 {[%emt 0:00:36]} 28. Nxd7 {[%emt 0:00:51]} Bxd7 {[%emt 0:00:06]} 29. exf5 {[%emt 0:00:06]} Rf8 {[%emt 0:17:59]} 30. fxe6 {[%emt 0:02:17]} Bc6 {[%emt 0:01:23]} 31. Nd5 {[%emt 0:03:05]} Bxd5 {[%emt 0:00:23]} 32. Bxd5 {[%emt 0:00:02]} Qf4 {[%emt 0:00:26]} 33. Rc2 {[%emt 0:03:36]} Rd8 {[%emt 0:03:36]} 34. Qh5 {[%emt 0:06:03]} Qxa4 {[%emt 0:02:01]} 35. Qf7+ {[%emt 0:02:51]} Kh8 {[%emt 0:00:05]} 36. Qh5+ {[%emt 0:00:04]} Kg8 {[%emt 0:00:04]} 37. Rc3 {[%emt 0:01:48]} Qe8 {[%emt 0:01:40]} 38. Qf5 {[%emt 0:01:06]} Qf8 {[%emt 0:01:43]} 39. Qxf8+ {[%emt 0:02:24]} Kxf8 {[%emt 0:00:15]} 40. Bxb7 {[%emt 0:00:01]} Bf6 {[%emt 0:00:19]} 41. Rc7 {[%emt 0:30:22]} Rd6 {[%emt 0:03:40]} 42. Bc8 {[%emt 0:00:00]} Bxb2 {[%emt 0:10:34]} 43. Rf7+ {[%emt 0:00:00]} Kg8 {[%emt 0:00:15]} 44. Bd7 {[%emt 0:00:00]} Rd1+ {[%emt 0:00:32]} 45. Kg2 {[%emt 0:00:00]} Re1 {[%emt 0:00:04]} 46. Bc8 {[%emt 0:00:00]} Bf6 {[%emt 0:04:19]} 47. Ra7 {[%emt 0:00:00]} Ra1 {[%emt 0:02:11]} 48. Bxa6 {[%emt 0:00:00]} Kf8 {[%emt 0:00:56]} 49. e7+ {[%emt 0:00:00]} Kf7 {[%emt 0:00:47]} 50. Bc4+ {[%emt 0:00:00]} 1-0

[Event "EYTCC U12 Open 2019"]
[Site "Pardubice"]
[Date "2019.07.13"]
[Round "3.7"]
[White "Gaal, Zsoka"]
[Black "Bialiauski, Artsiom"]
[Result "1-0"]
[ECO "A06"]
[WhiteElo "2047"]
[BlackElo "1784"]
[Annotator "NA"]
[PlyCount "89"]
[EventDate "2019.07.11"]
[EventType "swiss"]
[EventCountry "CZE"]
[SourceTitle "playchess.com"]
[Source "ChessBase"]
[SourceQuality "1"]
[WhiteTeam "Hungary"]
[BlackTeam "Belarus"]
[WhiteTeamCountry "HUN"]
[BlackTeamCountry "BLR"]
[TimeControl "40/5400+30:1800+30"]

1. Nf3 {[%emt 0:00:00]} d5 {[%emt 0:00:00]} 2. g3 {[%emt 0:00:00]} c6 {[%emt 0:00:44]} 3. Bg2 {[%emt 0:00:00]} Bg4 {[%emt 0:01:29]} 4. c4 {[%emt 0:00:13]} e6 {[%emt 0:01:17]} 5. O-O {[%emt 0:00:32]} Nf6 {[%emt 0:03:55]} 6. b3 {[%emt 0:10:34]} Bd6 {[%emt 0:06:53]} 7. Bb2 {[%emt 0:00:46]} O-O {[%emt 0:00:14]} 8. d3 {[%emt 0:03:35]} Qe7 {[%emt 0:05:43]} 9. Nbd2 {[%emt 0:05:51]} e5 {[%emt 0:04:22]} 10. Qc2 {[%emt 0:06:12]} Nbd7 {[%emt 0:04:37]} 11. h3 {[%emt 0:05:26]} Bh5 {[%emt 0:01:57]} 12. e4 {[%emt 0:05:14]} dxe4 {[%emt 0:02:37]} 13. dxe4 {[%emt 0:00:19]} Rfe8 {[%emt 0:10:20]} 14. Nh4 {[%emt 0:04:28]} Bg6 {[%emt 0:04:48]} 15. Nf5 {[%emt 0:01:31]} Bxf5 {[%emt 0:03:36]} 16. exf5 {[%emt 0:02:15]} Ba3 {[%emt 0:03:18]} 17. Bc3 {[%emt 0:02:09]} Bb4 {[%emt 0:00:53]} 18. Bxb4 {[%emt 0:00:49]} Qxb4 {[%emt 0:00:06]} 19. a3 {[%emt 0:01:07]} Qb6 {[%emt 0:01:10]} 20. b4 {[%emt 0:00:48]} Rad8 {[%emt 0:03:23]} 21. c5 {[%emt 0:03:18]} Qc7 {[%emt 0:00:16]} 22. Nc4 {[%emt 0:00:47]} Nd5 {[%emt 0:05:39]} 23. Nd6 {[%emt 0:02:12]} Re7 {[%emt 0:00:30]} 24. Rad1 {[%emt 0:04:51]} N7f6 {[%emt 0:00:32]} 25. Rfe1 {[%emt 0:01:01]} Ne8 {[%emt 0:10:12]} 26. Nxe8 {[%emt 0:09:50]} Rexe8 {[%emt 0:00:05]} 27. Qb3 {[%emt 0:03:14]} Nf6 {[%emt 0:02:25]} 28. Qa4 {[%emt 0:02:16]} a6 {[%emt 0:00:46]} 29. Qb3 {[%emt 0:02:51]} h6 {[%emt 0:01:34]} 30. Qc4 {[%emt 0:04:01]} Kf8 {[%emt 0:06:24]} 31. a4 {[%emt 0:00:40]} Qc8 {[%emt 0:04:47]} 32. g4 {[%emt 0:02:05]} Qc7 {[%emt 0:02:27]} 33. b5 {[%emt 0:01:02]} axb5 {[%emt 0:00:55]} 34. axb5 {[%emt 0:00:09]} Rd4 {[%emt 0:01:12]} 35. Rxd4 {[%emt 0:01:19]} cxb5 {[%emt 0:00:02]} 36. Qb4 {[%emt 0:08:43]} exd4 {[%emt 0:00:25]} 37. c6+ {[%emt 0:00:17]} Kg8 {[%emt 0:00:05]} 38. Rxe8+ {[%emt 0:02:36]} Nxe8 {[%emt 0:00:05]} 39. cxb7 {[%emt 0:00:35]} Nd6 {[%emt 0:07:32]} 40. Qa5 {[%emt 0:02:50]} Qc1+ {[%emt 0:00:16]} 41. Bf1 {[%emt 0:31:55]} Nxb7 {[%emt 0:30:28]} 42. Qa8+ {[%emt 0:00:22]} Kh7 {[%emt 0:00:20]} 43. Qxb7 {[%emt 0:00:25]} d3 {[%emt 0:00:10]} 44. Qxf7 {[%emt 0:00:49]} Qc3 {[%emt 0:00:00]} 45. f6 {[%emt 0:00:00]} 1-0